bitfinex/quotes_ETHUSD_20220218
["timestamp","ask_amount","ask_price","bid_price","bid_amount"]
[1645173211639,0.3,2913.5,2913.3,0.02641523]
[1645173215505,0.3,2913.5,2913.4,0.64089984]
[1645173215706,1.11359093,2913.5,2913.4,0.64089984]
[1645173216911,1.11359093,2913.5,2913.4,0.66727375]
[1645173217511,1.11359093,2913.5,2913.4,0.02637391]
[1645173219547,1.11359093,2913.5,2913.4,0.67195816]
[1645173221846,1.11359093,2913.5,2913.4,0.64577748]
[1645173222047,1.11359093,2913.5,2913.4,0.64580656]
[1645173222249,1.11359093,2913.5,2913.2,0.64581677]
[1645173222453,0.81359093,2913.4,2913.1,0.796]
[1645173222655,0.3,2913.5,2913.1,0.796]
[1645173222656,0.81359093,2913.3,2913.2,0.64585504]
[1645173222893,1.11359093,2913.3,2913.2,0.64585504]
[1645173223496,0.3,2913.3,2913.2,0.64585504]
[1645173223896,0.80933984,2913.5,2913.2,0.64585504]
[1645173223897,0.80936137,2913.4,2913.2,0.64585504]
[1645173224096,0.80935957,2913.3,2913.2,0.64585504]
[1645173224296,0.80936037,2913.3,2913.2,0.64585504]
[1645173224496,0.80937075,2913.3,2913.2,0.64585504]
[1645173224697,0.3,2913.3,2913.2,0.64585504]
[1645173224898,1.10941403,2913.3,2913.2,0.64585504]
[1645173225098,0.3,2913.5,2913.2,0.64585504]
[1645173225297,0.80941009,2913.4,2913.2,0.64585504]
[1645173225497,0.80937922,2913.3,2913.2,0.64585504]
[1645173225698,0.80938502,2913.3,2913.2,0.64585504]
[1645173225897,0.80938252,2913.3,2913.2,0.64585504]
[1645173226098,0.3,2913.5,2913.2,0.64585504]
[1645173226099,0.80938044,2913.4,2913.2,0.64585504]
[1645173226301,0.3,2913.5,2913.2,0.64585504]
[1645173226659,0.00298494,2913.7,2913.6,1.56130559]
[1645173226853,0.00298494,2913.7,2913.6,3.93056063]
[1645173227253,0.80929145,2913.8,2913.6,10.13656063]
[1645173227457,0.80929145,2914.2,2913.7,1.70807752]
[1645173227652,0.80907934,2914.1,2913.8,1.99985504]
[1645173227852,0.80907934,2914.1,2914.0,0.8580179]
[1645173227853,0.00471076,2914.1,2914.0,0.8580179]
[1645173228055,0.00471076,2914.7,2914.0,1.99987294]
[1645173228256,0.3,2914.2,2914.1,0.64585504]
[1645173228456,0.29880244,2914.2,2914.1,1.14185504]
[1645173228655,0.3064979,2914.2,2914.1,1.14185504]
[1645173228863,0.81676858,2914.2,2914.1,1.14103231]
[1645173229055,0.00769546,2914.2,2914.1,1.14103231]
[1645173229256,0.0029847,2914.2,2914.1,1.14103231]
[1645173229656,0.00471076,2914.6,2914.1,1.14103231]
[1645173229856,0.00298463,2914.3,2914.1,0.496]
[1645173230801,0.30471076,2914.6,2914.1,0.496]
[1645173231004,0.30471076,2914.6,2914.3,0.96358303]
[1645173231207,0.30471076,2914.6,2914.4,0.496]
[1645173232307,0.30769515,2914.6,2914.4,0.496]
[1645173233111,0.30471076,2914.6,2914.4,0.496]
[1645173233515,0.30769515,2914.6,2914.4,0.496]
[1645173234441,0.30471076,2914.6,2914.4,0.496]
[1645173234645,0.30769515,2914.6,2914.4,0.496]
[1645173234846,0.30769515,2914.6,2914.5,3.5]
[1645173234847,0.00769515,2914.6,2914.5,3.5]
[1645173235050,0.00298439,2914.6,2914.5,3.996]
[1645173235243,0.00298439,2914.6,2914.5,0.496]
[1645173235443,0.00298439,2914.6,2914.5,4.996]
[1645173235743,0.00471076,2915.2,2914.5,0.6675]
[1645173235941,0.00471076,2915.2,2915.0,1.17436471]
[1645173236143,7.60471076,2915.3,2915.1,0.496]
[1645173237245,7.60769469,2915.3,2915.1,0.496]
[1645173238095,7.60471076,2915.3,2915.1,0.496]
[1645173238295,7.60769469,2915.3,2915.1,0.496]
[1645173239297,7.60471076,2915.3,2915.1,0.496]
[1645173239497,7.60769469,2915.3,2915.1,0.496]
[1645173240498,7.60471076,2915.3,2915.1,0.496]
[1645173240699,7.60769469,2915.3,2915.1,0.496]
[1645173241499,7.60471076,2915.3,2915.1,0.496]
[1645173241750,7.60471076,2915.3,2915.1,0.796]
[1645173241939,7.60760888,2915.3,2915.1,0.796]
[1645173242744,7.60760888,2915.3,2915.2,1.08813243]
[1645173242745,7.60471076,2915.3,2915.2,1.08813243]
[1645173242945,7.60289812,2915.3,2915.2,1.08813243]
[1645173243746,7.60289812,2915.3,2915.2,4.58813243]
[1645173243949,7.6,2915.3,2915.2,4.58813243]
[1645173244146,7.6,2915.3,2915.2,5.08413243]
[1645173244147,7.55,2915.3,2915.2,5.08413243]
[1645173244546,0.25,2915.3,2915.2,5.08413243]
[1645173244846,0.00289809,2915.4,2915.2,5.08413243]
[1645173245047,0.00289809,2915.4,2915.3,3.5]
[1645173245248,0.00471076,2915.8,2915.3,3.996]
[1645173245502,0.00298675,2915.4,2915.3,3.996]
[1645173246102,0.00298675,2915.4,2915.3,0.496]
[1645173246304,0.00471076,2915.8,2915.3,0.496]
[1645173246505,0.85768,2915.6,2915.3,0.496]
[1645173246706,0.00769747,2915.5,2915.4,0.496]
[1645173246905,0.00298671,2915.5,2915.4,0.496]
[1645173247502,1.16239076,2915.6,2915.4,0.496]
[1645173247901,1.16537741,2915.6,2915.4,0.496]
[1645173248306,0.00769741,2915.6,2915.4,0.796]
[1645173248605,0.00298665,2915.6,2915.4,0.796]
[1645173248807,0.00471076,2915.8,2915.4,0.796]
[1645173249005,0.00298341,2915.6,2915.4,0.796]
[1645173249250,0.00769417,2915.6,2915.5,1.1605699]
[1645173249458,0.78896422,2915.6,2915.5,1.6565699]
[1645173249649,0.78896422,2915.6,2915.5,1.9565699]
[1645173250049,0.78598081,2915.6,2915.5,1.9565699]
[1645173251251,0.78598081,2915.6,2915.5,0.496]
[1645173251852,0.78598081,2915.6,2915.5,0.796]
[1645173252454,0.30471076,2915.7,2915.5,0.796]
[1645173252653,0.30769446,2915.7,2915.5,0.796]
[1645173253497,0.30471076,2915.7,2915.5,0.796]
[1645173253896,0.30769442,2915.7,2915.5,0.796]
[1645173254098,0.30769442,2915.7,2915.6,3.5]
[1645173254298,0.30769442,2915.7,2915.6,3.996]
[1645173254299,0.00769442,2915.7,2915.6,3.996]
[1645173254499,0.00298366,2915.7,2915.6,3.996]
[1645173254702,0.00298366,2915.7,2915.6,4.296]
[1645173254703,0.00471076,2915.7,2915.6,4.296]
[1645173254899,0.3,2916.0,2915.9,0.87486509]
[1645173255100,1.08482169,2916.0,2915.9,0.87486509]
[1645173255303,5.56506257,2916.8,2915.9,1.37086509]
[1645173255304,1.71513,2916.5,2915.9,1.37086509]
[1645173255501,3.43065,2917.1,2915.9,27.61686509]
[1645173255502,4.4825,2917.1,2915.9,27.61686509]
[1645173255701,4.4825,2917.1,2916.1,0.857266]
[1645173255899,4.4825,2917.1,2916.2,0.496]
[1645173255900,4.4325,2917.1,2916.2,0.496]
[1645173256302,0.00298297,2916.7,2916.3,3.5]
[1645173256500,0.00298297,2916.7,2916.4,1.35325]
[1645173256749,0.00298297,2916.7,2916.4,1.3532645]
[1645173257047,0.00298297,2916.7,2916.4,0.496]
[1645173257250,0.85726,2917.3,2916.4,0.496]
[1645173257447,2.57182,2917.3,2917.2,0.9084669]
[1645173257647,2.57182,2917.3,2916.7,0.496]
[1645173257849,2.57182,2917.3,2916.7,0.796]
[1645173258653,0.00298271,2917.1,2916.7,0.796]
[1645173258952,0.00298271,2917.1,2916.7,1.76459983]
[1645173259152,0.86025271,2917.1,2916.7,1.76459983]
[1645173259552,0.85727,2917.1,2916.7,1.76459983]
[1645173259756,0.85727,2917.1,2916.8,3.5]
[1645173259953,0.00298276,2917.0,2916.8,3.5]
[1645173260394,0.00298276,2917.0,2916.7,2.62180983]
[1645173260794,0.85727,2917.1,2916.7,2.62180983]
[1645173261193,0.00298279,2917.0,2916.7,2.62180983]
[1645173261793,0.00298279,2917.0,2916.7,1.76459983]
[1645173261993,0.85727,2917.1,2916.7,1.76459983]
[1645173262192,0.00298279,2917.0,2916.7,1.76459983]
[1645173262593,0.86030279,2917.0,2916.7,1.76459983]
[1645173263298,0.85732,2917.0,2916.7,1.76459983]
[1645173263498,0.86030279,2917.0,2916.7,1.76459983]
[1645173263698,0.86030279,2917.0,2916.8,0.5]
[1645173264148,0.3,2916.9,2916.7,1.76459983]
[1645173264551,1.71456,2917.4,2916.7,1.76459983]
[1645173264552,1.71435,2917.5,2916.8,3.5]
[1645173264750,0.00298275,2917.0,2916.9,0.496]
[1645173264955,0.00298275,2917.0,2916.9,25.036]
[1645173265252,0.00298275,2917.0,2916.9,11.502]
[1645173265449,0.00298275,2917.0,2916.9,12.35908]
[1645173265649,0.85706,2917.7,2917.6,1.14147168]
[1645173265850,0.85706,2917.7,2917.6,1.63747168]
[1645173266049,0.85706,2917.7,2917.6,1.93747168]
[1645173266650,0.85706,2917.7,2917.6,0.37777366]
[1645173268300,0.85706,2917.7,2917.6,0.67777366]
[1645173270806,0.00298225,2917.8,2917.6,0.67777366]
[1645173271748,0.00468721,2917.9,2917.6,0.67777366]
[1645173271950,0.00298222,2917.8,2917.6,0.69176705]
[1645173272350,0.00298222,2917.8,2917.7,3.5]
[1645173272752,0.00468721,2917.9,2917.6,1.17092689]
[1645173273154,0.00766939,2917.9,2917.6,1.17092689]
[1645173273556,0.00766939,2917.9,2917.7,3.5]
[1645173273755,0.00766939,2917.9,2917.8,1.07021478]
[1645173273956,0.00468721,2917.9,2917.8,1.07021478]
[1645173274156,0.00468721,2917.9,2917.8,4.87021478]
[1645173274357,0.00766936,2917.9,2917.8,4.87021478]
[1645173274560,0.00766936,2917.9,2917.8,1.37021478]
[1645173275162,0.00468721,2917.9,2917.8,1.37021478]
[1645173275595,0.73248532,2917.9,2917.8,1.37021478]
[1645173281249,0.73248532,2917.9,2917.5,0.496]
[1645173281250,0.73248532,2917.9,2917.5,0.796]
[1645173281451,2.44201811,2917.8,2917.5,0.796]
[1645173281652,0.72779811,2917.7,2917.5,0.796]
[1645173281850,0.73248532,2917.7,2917.5,0.796]
[1645173282252,0.73248532,2917.7,2917.6,0.98061102]
[1645173282653,0.73546759,2917.7,2917.6,0.98061102]
[1645173283703,0.73248532,2917.7,2917.6,0.98061102]
[1645173285004,0.00468721,2917.7,2917.6,0.98061102]
[1645173285204,0.72779811,2917.7,2917.6,0.98061102]
[1645173285407,0.73248532,2917.7,2917.6,0.98061102]
[1645173286647,0.73248532,2917.7,2917.6,0.3]
[1645173287345,0.73248532,2917.7,2917.5,1.36581141]
[1645173287546,0.72779811,2917.6,2917.5,1.36581141]
[1645173288348,0.72779811,2917.6,2917.5,1.66581141]
[1645173294148,0.00766952,2917.7,2917.5,1.66581141]
[1645173294547,0.00468721,2917.7,2917.5,1.66581141]
[1645173294747,0.00298227,2917.7,2917.5,1.66581141]
[1645173295149,0.70586207,2917.7,2917.5,1.66581141]
[1645173295752,0.7028798,2917.7,2917.5,1.66581141]
[1645173295949,0.70586208,2917.7,2917.5,1.66581141]
[1645173296950,0.7028798,2917.7,2917.5,1.69381402]
[1645173297150,0.70586208,2917.7,2917.5,1.69381402]
[1645173298000,0.7028798,2917.7,2917.5,1.69381402]
[1645173298403,0.70586208,2917.7,2917.5,1.69381402]
[1645173299200,1.0028798,2917.7,2917.5,1.69381402]
[1645173299401,0.7028798,2917.6,2917.5,1.69381402]
[1645173301403,0.7028798,2917.6,2917.5,0.54503762]
[1645173301648,0.7028798,2917.6,2917.5,0.32800261]
[1645173302052,1.71438,2917.4,2916.9,2.8853]
[1645173302252,0.7028798,2917.3,2917.0,0.74406915]
[1645173302450,1.00756701,2917.3,2917.1,1.72615114]
[1645173302652,0.7028798,2917.2,2917.1,0.98208199]
[1645173302849,0.7028798,2917.2,2917.1,1.72621291]
[1645173303056,0.7028798,2917.2,2917.1,1.17925393]
[1645173303354,0.7028798,2917.2,2917.1,1.47925393]
[1645173303562,1.7143,2917.1,2916.8,5.0244794]
[1645173303754,1.7143,2917.1,2916.9,0.85470811]
[1645173303755,1.71898721,2917.1,2916.9,0.85470811]
[1645173304357,1.72196988,2917.1,2916.9,0.85470811]
[1645173305157,1.72196988,2917.1,2916.9,1.15470811]
[1645173305404,1.71898721,2917.1,2916.9,1.15470811]
[1645173305601,1.72196988,2917.1,2916.9,1.15470811]
[1645173306403,1.71898721,2917.1,2916.9,1.15470811]
[1645173306605,1.72196989,2917.1,2916.9,1.15470811]
[1645173306805,0.16241042,2917.1,2916.9,1.15470811]
[1645173307703,0.15942774,2917.1,2916.9,1.15470811]
[1645173307903,0.16241042,2917.1,2916.9,1.15470811]
[1645173308908,0.15942774,2917.1,2916.9,1.15470811]
[1645173309150,0.16241042,2917.1,2916.9,1.15470811]
[1645173309354,0.16241042,2917.1,2917.0,3.5]
[1645173309551,0.15772321,2917.1,2917.0,3.5]
[1645173310153,0.15474053,2917.1,2917.0,3.5]
[1645173310353,0.15474053,2917.1,2916.9,2.01178811]
[1645173310552,0.15942774,2917.1,2916.9,2.01178811]
[1645173310754,0.15942774,2917.1,2917.0,0.496]
[1645173311052,0.15474053,2917.1,2917.0,0.496]
[1645173314611,0.00298264,2917.2,2917.0,0.496]
[1645173314810,0.00468721,2917.3,2917.0,0.496]
[1645173315210,0.00298264,2917.2,2917.0,0.496]
[1645173316111,0.00468721,2917.3,2917.0,0.496]
[1645173316313,0.00298261,2917.2,2917.0,0.496]
[1645173316758,0.04046648,2917.1,2917.0,0.496]
[1645173320802,0.04046648,2917.1,2917.0,1.496]
[1645173323205,0.77655146,2917.1,2917.0,1.21293688]
[1645173323406,0.04046648,2917.1,2917.0,2.21293688]
[1645173323607,0.77655146,2917.1,2917.0,2.21293688]
[1645173323807,0.04046648,2917.1,2917.0,2.21293688]
[1645173324007,0.77655146,2917.1,2917.0,1.21293688]
[1645173324264,0.77655146,2917.1,2917.0,2.21293688]
[1645173325464,0.00279898,2917.2,2917.0,1.21293688]
[1645173325662,0.85714,2917.4,2917.0,2.5934789]
[1645173325865,0.85714,2917.4,2917.1,0.85699]
[1645173326063,0.85714,2917.4,2917.1,1.7139556]
[1645173326064,0.00279898,2917.2,2917.1,1.7139556]
[1645173326264,0.00279898,2917.2,2917.1,3.5099556]
[1645173326466,1.30649885,2917.5,2917.2,2.5]
[1645173326666,1.30649885,2917.5,2917.3,0.496]
[1645173326667,0.00468721,2917.5,2917.3,0.496]
[1645173326871,0.00468721,2918.0,2917.7,2.18242337]
[1645173327066,0.00468721,2918.1,2917.8,0.496]
[1645173327265,0.85684,2918.1,2917.8,0.496]
[1645173327670,0.00468721,2918.0,2917.8,0.496]
[1645173328312,0.00468721,2918.0,2917.9,0.91770904]
[1645173328511,0.86152721,2918.1,2917.9,1.71370904]
[1645173328711,1.16152721,2918.1,2917.9,1.71370904]
[1645173329516,1.16259531,2918.1,2917.9,1.71370904]
[1645173330516,1.16152721,2918.1,2917.9,1.71370904]
[1645173330811,1.16472597,2918.1,2917.9,1.71370904]
[1645173331659,1.16152721,2918.1,2918.0,0.01535406]
[1645173331860,1.15684,2918.1,2918.0,0.51135406]
[1645173332062,1.16003876,2918.1,2918.0,0.51135406]
[1645173332966,1.15684,2918.1,2918.0,0.51135406]
[1645173336702,1.15684,2918.1,2918.0,0.50730516]
[1645173338809,0.85684,2918.1,2918.0,0.50730516]
[1645173343808,0.85684,2918.1,2918.0,0.67860516]
[1645173344914,0.85684,2918.1,2918.0,0.50730516]
[1645173345509,0.85684,2918.1,2918.0,1.23304244]
[1645173346802,0.85684,2918.1,2918.0,0.01130516]
[1645173346803,1.01060388,2918.1,2918.0,0.01130516]
[1645173347404,0.91060388,2918.1,2918.0,0.01130516]
[1645173347609,2.09963875,2918.1,2918.0,0.01130516]
[1645173347803,5.0,2918.0,2917.2,5.169]
[1645173348003,1.71428,2917.8,2917.3,0.68582938]
[1645173348203,1.01877387,2917.7,2917.3,0.68582938]
[1645173348407,1.15707,2917.7,2917.3,0.98582938]
[1645173348605,0.8571,2917.6,2917.4,0.68582938]
[1645173348805,0.8571,2917.6,2917.2,5.169]
[1645173348806,1.05980443,2917.5,2917.2,5.169]
[1645173349004,1.07610093,2917.4,2917.2,5.169]
[1645173349406,1.07610093,2917.4,2916.8,0.496]
[1645173349605,1.07610093,2917.4,2916.9,0.68609138]
[1645173349807,1.07610093,2917.4,2917.0,0.25]
[1645173350006,0.00318926,2917.3,2917.1,0.68609138]
[1645173351008,0.75990741,2917.7,2917.1,0.68609138]
[1645173351210,0.00318929,2917.3,2917.1,0.68609138]
[1645173351411,0.00318929,2917.3,2917.1,1.60991706]
[1645173351711,0.00318929,2917.3,2917.2,0.68609138]
[1645173352110,0.75990741,2917.6,2917.2,0.68609138]
[1645173352310,0.00318926,2917.4,2917.2,0.68609138]
[1645173352511,0.00318926,2917.4,2917.3,0.68609138]
[1645173352814,0.00318926,2917.4,2917.1,0.68609138]
[1645173353019,0.00318926,2917.4,2917.2,0.68609138]
[1645173353217,0.00318926,2917.4,2917.0,0.25]
[1645173353218,0.00318926,2917.4,2917.3,0.68609138]
[1645173353535,0.00312942,2917.4,2917.1,0.68609138]
[1645173353717,0.00312942,2917.4,2917.2,1.71073521]
[1645173354156,0.00312942,2917.4,2917.3,0.68609138]
[1645173354558,1.1902,2917.8,2917.3,4.68209138]
[1645173354864,0.00312939,2917.5,2917.4,0.68609138]
[1645173355064,0.00312939,2917.5,2917.4,4.85339138]
[1645173355262,0.00312939,2917.5,2917.4,5.68209138]
[1645173355859,0.76002341,2918.2,2917.4,5.68209138]
[1645173356060,0.00312931,2917.6,2917.5,0.68609138]
[1645173356260,0.00312931,2917.6,2917.5,4.68209138]
[1645173357060,0.76002341,2918.2,2918.0,1.02436368]
[1645173357902,0.76002341,2918.2,2917.7,0.496]
[1645173358114,0.76002341,2918.2,2917.8,0.68612659]
[1645173358506,0.76298172,2918.2,2917.8,0.68612659]
[1645173359107,0.76298172,2918.2,2917.8,1.73374316]
[1645173359310,0.76002341,2918.2,2917.9,0.68612659]
[1645173359709,0.00295838,2918.1,2917.9,0.68612659]
[1645173360512,0.76002341,2918.2,2917.7,0.496]
[1645173360912,0.00296988,2918.1,2917.7,0.496]
[1645173361411,1.86028238,2918.1,2917.7,0.496]
[1645173361656,0.76002341,2918.0,2917.9,0.01408145]
[1645173362057,0.76299336,2918.0,2917.9,0.01408145]
[1645173362960,0.76002341,2918.0,2917.9,0.01408145]
[1645173364562,0.00296914,2918.1,2917.9,0.01408145]
[1645173364862,0.7637775,2918.1,2917.9,0.01408145]
[1645173365062,0.76080836,2918.0,2917.9,0.01408145]
[1645173365265,0.76080836,2918.0,2917.9,0.70104425]
[1645173365909,0.00296914,2918.1,2917.9,0.70104425]
[1645173366106,0.7637775,2918.1,2917.9,0.01408145]
[1645173366309,0.00296914,2918.1,2918.0,0.68698491]
[1645173366607,0.76080728,2918.3,2918.0,0.68698491]
[1645173366807,0.00296911,2918.1,2918.0,0.68698491]
[1645173367007,0.00013796,2918.1,2918.0,0.68698491]
[1645173367209,0.00013796,2918.1,2917.8,0.68698491]
[1645173367408,0.00013796,2918.1,2917.9,0.68698491]
[1645173367612,0.00013796,2918.1,2918.0,0.68698491]
[1645173367811,0.76080728,2918.3,2917.8,0.68698491]
[1645173368014,0.76080728,2918.3,2917.9,0.68698491]
[1645173368214,0.76080728,2918.3,2918.0,0.68698491]
[1645173368418,0.76080728,2918.3,2917.8,0.68698491]
[1645173368615,0.76080728,2918.3,2917.9,0.68731831]
[1645173368915,0.76080728,2918.3,2918.0,0.68731831]
[1645173369157,0.76080728,2918.3,2918.1,0.68731831]
[1645173369357,0.76080728,2918.3,2917.7,0.496]
[1645173369558,0.76080728,2918.3,2917.8,0.6875279]
[1645173369959,0.76080728,2918.3,2917.9,0.6875279]
[1645173370161,0.76080728,2918.3,2918.0,0.6875279]
[1645173370462,0.76080728,2918.3,2918.1,0.6875279]
[1645173370663,0.76080728,2918.3,2917.6,0.496]
[1645173370860,0.76080728,2918.3,2917.7,0.69676379]
[1645173371562,0.0031886,2918.2,2917.7,0.69676379]
[1645173372564,0.88533691,2917.9,2917.7,0.69676379]
[1645173372765,0.88533691,2917.9,2917.7,0.99676379]
[1645173373024,0.88533691,2917.9,2917.8,0.69676379]
[1645173373627,1.64147526,2917.9,2917.8,0.69676379]
[1645173374026,0.75613835,2917.9,2917.8,0.69676379]
[1645173374326,0.00318854,2918.2,2917.8,0.69676379]
[1645173374726,0.75932689,2918.2,2917.8,0.69676379]
[1645173374925,0.75613835,2918.1,2917.9,0.69676379]
[1645173375125,0.75613835,2918.0,2917.6,0.496]
[1645173375325,0.75613835,2917.9,2917.7,0.69327183]
[1645173375526,0.0031886,2918.2,2917.7,0.69327183]
[1645173375726,0.75922853,2918.2,2917.7,1.87650158]
[1645173375928,0.75922853,2918.2,2917.8,0.69327183]
[1645173376229,0.75603993,2918.2,2917.8,0.69327183]
[1645173376427,0.75603993,2918.1,2917.8,0.69327183]
[1645173376655,0.75603993,2918.0,2917.8,0.69327183]
[1645173376859,0.75603993,2917.9,2917.8,0.69327183]
[1645173377061,0.00318858,2918.2,2917.8,0.69327183]
[1645173377359,0.75607779,2918.3,2917.8,0.69327183]
[1645173377857,0.0031886,2918.2,2917.8,0.69327183]
[1645173379764,0.75607779,2918.3,2917.8,0.69327183]
[1645173380061,0.0031886,2918.2,2917.8,0.69327183]
[1645173381106,0.75607779,2918.3,2917.8,0.69327183]
[1645173381313,0.0031886,2918.2,2917.8,0.69327183]
[1645173382311,0.75607779,2918.3,2917.8,0.69327183]
[1645173382512,0.0031886,2918.2,2917.8,0.69327183]
[1645173383319,0.75607779,2918.3,2917.8,0.69327183]
[1645173383720,0.0031886,2918.2,2917.8,0.69327183]
[1645173384566,0.75607779,2918.3,2917.8,0.69327183]
[1645173384969,0.0031886,2918.2,2917.8,0.69327183]
[1645173385866,0.75607779,2918.3,2917.8,0.69327183]
[1645173386068,0.0031886,2918.2,2917.8,0.69327183]
[1645173386969,0.75607779,2918.3,2918.0,0.01595482]
[1645173387168,0.75607779,2918.3,2918.1,0.69327183]
[1645173387369,0.0031886,2918.2,2918.1,0.69327183]
[1645173387570,0.75926639,2918.2,2918.1,0.69327183]
[1645173388216,0.75607779,2918.2,2918.1,0.69327183]
[1645173388516,0.75607779,2918.4,2918.1,0.69327183]
[1645173391859,0.75607779,2918.4,2918.3,0.01588421]
[1645173392359,0.75607779,2918.4,2918.3,0.70915604]
[1645173393065,0.75607779,2918.5,2918.3,0.70915604]
[1645173393267,0.75607779,2918.4,2918.3,0.01588421]
[1645173393665,0.75607779,2918.5,2918.3,0.71234804]
[1645173393867,0.75607779,2918.4,2918.3,0.01588421]
[1645173394271,0.75607779,2918.4,2918.3,0.51188421]
[1645173394668,0.75607779,2918.4,2918.3,1.20834471]
[1645173395270,0.75607779,2918.4,2918.3,2.33253554]
[1645173396716,0.75607779,2918.4,2918.3,1.20834471]
[1645173396919,0.00318967,2918.5,2918.3,1.1924605]
[1645173397116,0.00318967,2918.5,2918.4,0.6964605]
[1645173397317,0.75926746,2918.5,2918.4,0.6964605]
[1645173397817,0.75607779,2918.5,2918.3,0.6964605]
[1645173398022,0.75607779,2918.4,2918.3,0.6964605]
[1645173400463,0.75607779,2918.4,2918.2,0.6964605]
[1645173400662,0.00318967,2918.5,2918.3,0.6964605]
[1645173400862,0.7406417,2918.5,2918.4,0.6964605]
[1645173401262,0.7406417,2918.5,2918.2,0.6964605]
[1645173401463,0.73745203,2918.4,2918.3,0.6964605]
[1645173401868,0.73745203,2918.4,2918.2,0.6964605]
[1645173402068,0.66503938,2918.6,2918.3,0.6964605]
[1645173402265,0.73230559,2918.5,2918.4,0.6964605]
[1645173402464,0.73230559,2918.5,2918.2,0.6964605]
[1645173402910,0.65716257,2918.6,2918.2,0.6964605]
[1645173402911,0.73230559,2918.4,2918.2,0.6964605]
[1645173403115,0.66035217,2918.6,2918.2,0.6964605]
[1645173403116,0.73230559,2918.3,2918.2,0.6964605]
[1645173403516,0.73230559,2918.5,2918.2,0.6964605]
[1645173403921,0.0031896,2918.6,2918.2,0.6964605]
[1645173403922,0.73230559,2918.4,2918.2,0.6964605]
[1645173404122,0.73230559,2918.3,2918.2,0.6964605]
[1645173404521,0.73549526,2918.5,2918.2,0.6964605]
[1645173404725,0.73230559,2918.4,2918.2,0.6964605]
[1645173404922,0.73230559,2918.3,2918.2,0.6964605]
[1645173405523,0.00318971,2918.4,2918.2,0.6964605]
[1645173406322,0.73230559,2918.5,2918.2,0.6964605]
[1645173406523,0.00318971,2918.4,2918.1,0.746]
[1645173407561,0.00468721,2918.7,2918.1,0.746]
[1645173407762,0.00318974,2918.4,2918.1,0.746]
[1645173408565,0.00318974,2918.4,2918.2,0.89655482]
[1645173408865,0.00468721,2918.8,2918.2,0.89655482]
[1645173409067,0.00468721,2918.8,2918.3,0.85681]
[1645173409766,0.00468721,2918.8,2918.2,0.89655482]
[1645173410168,0.00318952,2918.7,2918.3,0.85681]
[1645173410825,0.00318952,2918.7,2918.1,0.25]
[1645173411125,0.00468721,2918.8,2918.1,0.25]
[1645173411326,0.00318956,2918.6,2918.1,0.25]
[1645173412229,0.00468721,2918.8,2918.1,0.25]
[1645173412633,0.00318961,2918.5,2918.1,0.25]
[1645173413529,0.00468721,2918.8,2918.1,0.25]
[1645173413731,0.0031896,2918.5,2918.1,0.25]
[1645173414662,0.00468721,2918.8,2918.1,0.25]
[1645173414858,0.0031896,2918.5,2918.3,0.85682]
[1645173415959,0.00468721,2918.8,2918.3,0.85682]
[1645173416162,0.00318963,2918.5,2918.3,0.85682]
[1645173417165,0.00468721,2918.8,2918.3,0.85682]
[1645173417364,0.00318963,2918.5,2918.3,0.85682]
[1645173418235,0.00468721,2918.8,2918.3,0.85682]
[1645173418636,0.00318963,2918.5,2918.3,0.85682]
[1645173419437,0.00468721,2918.8,2918.1,0.25]
[1645173419837,0.00318963,2918.5,2918.1,0.25]
[1645173420641,0.00468721,2918.8,2918.1,0.25]
[1645173421038,0.0031896,2918.5,2918.1,0.25]
[1645173421660,0.0031896,2918.5,2918.4,0.03714686]
[1645173421858,0.00468721,2918.8,2918.4,0.03714686]
[1645173422061,0.0031896,2918.5,2918.4,0.03714686]
[1645173423067,0.00468721,2918.8,2918.4,0.03714686]
[1645173423265,0.0031896,2918.6,2918.4,0.03714686]
[1645173424365,1.09376681,2918.9,2918.4,0.03714686]
[1645173424366,5.55092938,2918.9,2918.4,0.03714686]
[1645173424565,0.00318956,2918.6,2918.4,0.03714686]
[1645173425412,0.8569988,2918.7,2918.4,0.03714686]
[1645173425816,0.00318956,2918.6,2918.4,0.03714686]
[1645173426618,0.72440883,2918.6,2918.5,0.72602868]
[1645173427025,1.02759839,2918.6,2918.5,0.72602868]
[1645173427619,4.52759839,2918.6,2918.5,0.72589259]
[1645173427822,0.72143403,2918.2,2918.1,0.25]
[1645173428019,0.72143403,2918.2,2918.1,0.97669842]
[1645173428227,1.44584286,2918.2,2918.1,0.97669842]
[1645173430372,1.44584286,2918.2,2918.1,1.47269842]
[1645173430772,1.44584286,2918.2,2918.1,2.72747042]
[1645173430971,1.44584286,2918.2,2918.1,2.47747042]
[1645173431569,0.72143403,2918.2,2918.1,2.47747042]
[1645173431771,0.00318954,2918.5,2918.1,5.94514351]
[1645173431972,0.00318954,2918.5,2918.4,0.65428657]
[1645173432273,0.00318954,2918.5,2918.4,0.796]
[1645173432472,0.00318954,2918.5,2918.4,1.69399842]
[1645173432673,3.5,2919.4,2918.4,3.56125862]
[1645173432915,1.26979997,2919.6,2918.8,0.8849679]
[1645173432916,0.01275573,2919.2,2918.8,0.8849679]
[1645173433124,0.01275573,2919.2,2918.9,0.72669842]
[1645173433330,0.01275573,2919.2,2918.9,3.38557624]
[1645173433519,0.01275573,2919.2,2919.0,0.72669842]
[1645173433719,0.01275573,2919.2,2919.1,0.496]
[1645173433919,4.41437001,2920.0,2919.4,1.00064908]
[1645173434119,0.7087749,2919.9,2919.5,0.72669842]
[1645173434322,0.01275457,2919.7,2919.5,1.58314842]
[1645173434521,0.7087749,2919.6,2919.4,1.00064908]
[1645173434720,0.7087749,2919.6,2919.5,0.73808119]
[1645173435523,0.00318879,2919.7,2919.5,0.73808119]
[1645173436123,0.71196369,2919.7,2919.5,0.73808119]
[1645173436324,0.01275325,2920.1,2919.5,0.73808119]
[1645173436325,1.2354,2920.2,2919.5,0.73808119]
[1645173436521,0.70796046,2920.1,2919.5,0.73808119]
[1645173436761,0.0030931,2919.7,2919.5,0.73808119]
[1645173437362,0.0030931,2919.7,2919.5,1.59452119]
[1645173437564,0.70796046,2919.9,2919.6,0.73808119]
[1645173437764,1.2354,2920.2,2919.5,0.85644]
[1645173437765,0.0030931,2919.7,2919.5,0.85644]
[1645173437969,0.71105356,2919.7,2919.5,0.85644]
[1645173438166,0.0030931,2919.7,2919.4,1.25064908]
[1645173438365,0.0030931,2919.7,2919.5,0.74567558]
[1645173438768,0.69801742,2920.1,2919.5,1.60211558]
[1645173438966,0.0030931,2919.7,2919.5,0.85644]
[1645173439768,0.70111052,2919.7,2919.5,0.85644]
[1645173439966,0.00466377,2920.1,2919.5,0.85644]